[Event "58th Akiba Rubinstein D 2022"]
[Site "Polanica-Zdroj"]
[Date "2022.08.18"]
[Round "6.6"]
[White "Bialik, Nikodem"]
[Black "Zerebiec, Maurycy"]
[Result "0-1"]
[ECO "C01"]
[WhiteElo "1638"]
[BlackElo "1915"]
[Annotator "NA RC"]
[PlyCount "130"]
[EventDate "2022.08.13"]
[EventCountry "POL"]
[SourceTitle "playchess.com"]
[Source "ChessBase"]
[SourceQuality "1"]
[TimeControl "40/5400+30:1800+30"]

1. e4 {[%emt 0:00:03]} e6 {[%emt 0:01:23]} 2. d4 {[%emt 0:00:46]} d5 {[%emt 0:00:31]} 3. exd5 {[%emt 0:00:30]} exd5 {[%emt 0:00:02]} 4. c4 {[%emt 0:00:13]} Nf6 {[%emt 0:00:03]} 5. Nf3 {[%emt 0:00:35]} Bb4+ {[%emt 0:00:02]} 6. Bd2 {[%emt 0:00:15]} Qe7+ {[%emt 0:00:43]} 7. Qe2 {[%emt 0:01:00]} Bxd2+ {[%emt 0:00:02]} 8. Nbxd2 {[%emt 0:00:09]} Be6 {[%emt 0:00:03]} 9. c5 {[%emt 0:00:53]} O-O {[%emt 0:03:37]} 10. Ne5 {[%emt 0:07:57]} Nc6 {[%emt 0:02:09]} 11. Ndf3 {[%emt 0:02:37]} Nxe5 {[%emt 0:06:14]} 12. Nxe5 {[%emt 0:03:20]} Rfe8 {[%emt 0:03:01]} 13. O-O-O {[%emt 0:09:24]} Bf5 {[%emt 0:06:03]} (13... Ne4 $17 14. Qe3 f6) 14. f3 {[%emt 0:04:30]} Nd7 {[%emt 0:00:24]} 15. Nxd7 {[%emt 0:03:39]} Qxe2 {[%emt 0:00:39]} 16. Bxe2 {[%emt 0:00:12]} Rxe2 {[%emt 0:00:04]} 17. Ne5 {[%emt 0:00:10]} Rxg2 {[%emt 0:00:19]} 18. Rd2 {[%emt 0:00:09]} Rxd2 {[%emt 0:00:09]} 19. Kxd2 {[%emt 0:00:04]} f6 {[%emt 0:00:19]} 20. Nd3 {[%emt 0:00:38]} Bxd3 {[%emt 0:00:21]} 21. Kxd3 {[%emt 0:00:07]} Re8 {[%emt 0:00:09]} 22. b4 {[%emt 0:01:31]} f5 {[%emt 0:00:06]} 23. f4 {[%emt 0:01:55]} Re4 {[%emt 0:00:51]} 24. Rf1 {[%emt 0:00:06]} Kf7 {[%emt 0:00:08]} 25. b5 {[%emt 0:00:39]} h6 {[%emt 0:00:17]} 26. a4 {[%emt 0:00:09]} Kf6 {[%emt 0:00:16]} 27. h4 {[%emt 0:01:37]} g6 {[%emt 0:01:08]} 28. b6 {[%emt 0:02:18]} axb6 {[%emt 0:00:29]} 29. cxb6 {[%emt 0:00:06]} cxb6 {[%emt 0:02:20]} 30. Rb1 {[%emt 0:00:08]} Re6 {[%emt 0:00:06]} 31. Rb5 {[%emt 0:00:49]} Rd6 {[%emt 0:00:02]} 32. Rb1 {[%emt 0:00:49]} g5 {[%emt 0:03:28]} 33. hxg5+ {[%emt 0:01:44]} hxg5 {[%emt 0:02:08]} 34. fxg5+ {[%emt 0:00:41]} Kxg5 {[%emt 0:00:17]} 35. Rg1+ {[%emt 0:00:26]} Kf6 {[%emt 0:00:13]} 36. Rh1 {[%emt 0:01:11]} Kg6 $2 {[%emt 0:01:55]} (36... Re6 $19 37. Kd2 Kg6 38. Rg1+ Kf7) 37. Rg1+ {[%emt 0:00:23]} Kf7 {[%emt 0:00:01]} 38. Rc1 {[%emt 0:00:55]} Rc6 {[%emt 0:00:12]} 39. Rh1 {[%emt 0:00:07] [#]} Rg6 $2 {[%emt 0:00:26]} (39... Re6 $1 $19 40. Rf1 Kf6) 40. Rh7+ {[%emt 0:00:15]} Rg7 {[%emt 0:00:34]} 41. Rh6 {[%emt 0:30:05]} Rg3+ {[%emt 0:30:06]} 42. Kd2 {[%emt 0:00:28] [#]} Rb3 $1 {[%emt 0:00:07]} 43. Rd6 {[%emt 0:01:37]} b5 {[%emt 0:02:00]} 44. a5 $1 {[%emt 0:00:29]} f4 {[%emt 0:01:04]} 45. Rxd5 {[%emt 0:00:38]} Ke6 {[%emt 0:00:55]} 46. Re5+ {[%emt 0:00:28]} Kd6 {[%emt 0:00:08]} 47. Rf5 {[%emt 0:00:34]} f3 48. Ke1 {[%emt 0:01:02]} Kc6 {[%emt 0:01:29]} 49. Rc5+ {[%emt 0:00:07]} Kd6 {[%emt 0:00:04]} 50. Rf5 {[%emt 0:00:09]} b4 {[%emt 0:00:34]} 51. Kf2 {[%emt 0:00:15]} Kc7 {[%emt 0:01:32]} 52. Rb5 {[%emt 0:01:10]} Kc6 {[%emt 0:00:47]} 53. Rc5+ $1 {[%emt 0:00:07]} Kd6 {[%emt 0:00:08]} 54. Rb5 {[%emt 0:00:22]} Kc7 {[%emt 0:00:01]} 55. Kg3 {[%emt 0:00:32]} Kb8 {[%emt 0:07:33]} 56. a6 {[%emt 0:00:25]} b6 {[%emt 0:00:02]} 57. Rxb6+ {[%emt 0:00:07]} Ka7 {[%emt 0:00:01]} 58. Re6 {[%emt 0:08:52]} Rd3 {[%emt 0:02:17]} 59. d5 {[%emt 0:01:29]} b3 {[%emt 0:00:25]} 60. d6 {[%emt 0:02:14]} b2 {[%emt 0:01:00]} 61. Re1 {[%emt 0:00:10]} Rxd6 {[%emt 0:00:15]} 62. Kxf3 {[%emt 0:00:14]} Kxa6 {[%emt 0:00:08]} 63. Rb1 {[%emt 0:00:10]} Rb6 {[%emt 0:00:03]} 64. Ke3 {[%emt 0:00:05]} Ka5 {[%emt 0:00:05]} 65. Kd3 {[%emt 0:00:25]} Ka4 {[%emt 0:00:08]} 0-1

[Event "58th Akiba Rubinstein D 2022"]
[Site "Polanica-Zdroj"]
[Date "2022.08.18"]
[Round "6.7"]
[White "Bem, Tymoteusz"]
[Black "Owoc, Jakub"]
[Result "1-0"]
[ECO "A41"]
[WhiteElo "1679"]
[BlackElo "1756"]
[Annotator "NA RC"]
[PlyCount "85"]
[EventDate "2022.08.13"]
[EventCountry "POL"]
[SourceTitle "playchess.com"]
[Source "ChessBase"]
[SourceQuality "1"]
[TimeControl "40/5400+30:1800+30"]

1. d4 d6 2. Nf3 Nf6 3. g3 g6 4. Bg2 Bg7 5. O-O O-O 6. b3 Nbd7 7. Bb2 c6 8. Nbd2 Qc7 9. c4 Re8 10. e4 e5 11. dxe5 Nxe5 12. Nxe5 dxe5 13. Qc2 c5 14. Nb1 Be6 15. Nc3 Rad8 16. Nd5 Nxd5 17. cxd5 Bc8 18. Rac1 b6 19. Qd2 f5 20. b4 c4 21. b5 Qc5 22. a4 fxe4 23. Qe2 Qxd5 24. Bxe4 Qd2 25. Qxc4+ Be6 26. Qc3 Qd4 27. Qc2 Qb4 28. Bc3 Qc5 29. Qb2 Qc4 30. Bc6 Re7 31. Bb4 Qg4 32. Bxe7 e4 33. Bf6 Qf3 34. Bxg7 Bh3 35. Bxe4 Qxe4 36. f3 Qe3+ 37. Qf2 Qd3 38. Bc3 Bxf1 39. Qxf1 Qe3+ 40. Kg2 Rc8 41. Bb2 Re8 42. Qc4+ Re6 43. Bc3 1-0

[Event "58th Akiba Rubinstein D 2022"]
[Site "Polanica-Zdroj"]
[Date "2022.08.18"]
[Round "6.8"]
[White "Gbiorczyk, Mikolaj"]
[Black "Stepinski, Piotr"]
[Result "1/2-1/2"]
[ECO "B40"]
[WhiteElo "1781"]
[BlackElo "1568"]
[Annotator "NA RC"]
[PlyCount "117"]
[EventDate "2022.08.13"]
[EventCountry "POL"]
[SourceTitle "playchess.com"]
[Source "ChessBase"]
[SourceQuality "1"]
[TimeControl "40/5400+30:1800+30"]

1. e4 {[%emt 0:00:03]} c5 {[%emt 0:00:18]} 2. Nf3 {[%emt 0:00:05]} e6 {[%emt 0:00:03]} 3. g3 {[%emt 0:00:10]} Nc6 {[%emt 0:00:14]} 4. Bg2 {[%emt 0:00:09]} Nf6 {[%emt 0:00:27]} 5. Qe2 {[%emt 0:00:14]} Qc7 {[%emt 0:01:20]} 6. O-O {[%emt 0:02:44]} d6 {[%emt 0:01:03]} 7. c3 {[%emt 0:02:13]} Be7 {[%emt 0:05:18]} 8. d4 {[%emt 0:00:57]} cxd4 {[%emt 0:15:01]} 9. cxd4 {[%emt 0:00:17]} O-O {[%emt 0:00:12]} 10. Nc3 {[%emt 0:02:05]} a6 {[%emt 0:03:41]} 11. Bd2 {[%emt 0:15:51]} Qb6 {[%emt 0:33:29]} 12. d5 {[%emt 0:14:19]} Nd4 {[%emt 0:07:49]} 13. Nxd4 {[%emt 0:02:35]} Qxd4 {[%emt 0:00:16]} 14. Rad1 {[%emt 0:08:40]} e5 {[%emt 0:07:35]} 15. Be3 {[%emt 0:03:48]} Qb4 {[%emt 0:00:28]} 16. h3 {[%emt 0:05:04]} Nd7 {[%emt 0:08:19]} 17. f4 {[%emt 0:05:06]} Qa5 {[%emt 0:04:12]} 18. Kh1 {[%emt 0:04:26]} b5 {[%emt 0:01:17]} 19. a3 {[%emt 0:12:13]} Bb7 {[%emt 0:00:45]} 20. f5 {[%emt 0:01:21]} Rac8 {[%emt 0:00:31]} 21. g4 {[%emt 0:02:30]} Qd8 {[%emt 0:00:31]} 22. Qd2 {[%emt 0:03:41]} h6 {[%emt 0:00:21]} 23. Rf3 {[%emt 0:03:47]} Bg5 {[%emt 0:00:22]} 24. Rdf1 {[%emt 0:00:21]} Bxe3 {[%emt 0:00:50]} 25. Qxe3 {[%emt 0:00:05]} Qb6 {[%emt 0:00:59]} 26. Qe1 {[%emt 0:01:02]} f6 {[%emt 0:00:19]} 27. h4 {[%emt 0:00:49]} Kf7 {[%emt 0:00:29]} 28. Qg3 {[%emt 0:01:28]} a5 {[%emt 0:01:03]} 29. R1f2 {[%emt 0:02:05]} b4 {[%emt 0:00:32]} 30. axb4 {[%emt 0:01:06]} axb4 {[%emt 0:00:09]} 31. Na4 {[%emt 0:00:21]} Qa5 {[%emt 0:00:46]} 32. b3 {[%emt 0:00:10]} Nc5 {[%emt 0:00:26]} 33. Nxc5 {[%emt 0:00:40]} Rxc5 {[%emt 0:00:13]} 34. g5 {[%emt 0:01:08]} hxg5 {[%emt 0:00:25]} 35. hxg5 {[%emt 0:00:05]} Rh8+ {[%emt 0:01:05]} 36. Bh3 {[%emt 0:00:28]} Rc1+ {[%emt 0:01:00]} 37. Kh2 {[%emt 0:01:12]} Qa1 {[%emt 0:00:24]} 38. Qg2 {[%emt 0:00:06]} fxg5 {[%emt 0:03:10]} 39. Rg3 {[%emt 0:02:15]} g4 {[%emt 0:00:31]} 40. f6 {[%emt 0:01:17]} g6 {[%emt 0:00:16]} 41. Rxg4 {[%emt 0:32:16]} Rxh3+ {[%emt 0:30:11]} 42. Kxh3 {[%emt 0:00:30]} Rh1+ {[%emt 0:00:04]} 43. Kg3 {[%emt 0:00:04]} Rg1 {[%emt 0:00:07]} 44. Rh4 {[%emt 0:00:24]} Qc3+ {[%emt 0:01:45]} 45. Kh2 {[%emt 0:00:32]} Rxg2+ {[%emt 0:01:49]} 46. Kxg2 {[%emt 0:00:02]} Qc8 {[%emt 0:02:07]} 47. Rh7+ {[%emt 0:00:33]} Kg8 {[%emt 0:00:03]} 48. f7+ {[%emt 0:00:33]} Kxh7 {[%emt 0:00:03]} 49. f8=Q {[%emt 0:00:08]} Qg4+ {[%emt 0:00:03]} 50. Kh1 {[%emt 0:00:41]} Qxe4+ {[%emt 0:00:04]} 51. Kg1 {[%emt 0:01:01]} Qg4+ {[%emt 0:00:07]} 52. Rg2 {[%emt 0:01:36]} Qd1+ {[%emt 0:00:07]} 53. Kh2 {[%emt 0:00:06]} Qh5+ {[%emt 0:00:25]} 54. Kg1 {[%emt 0:01:02]} Qd1+ {[%emt 0:00:06]} 55. Kh2 Qh5+ {[%emt 0:00:29]} 56. Kg1 {[%emt 0:00:11]} Qd1+ {[%emt 0:00:04]} 57. Kh2 {[%emt 0:00:37]} Bxd5 58. Qe7+ Kh6 59. Qf8+ 1/2-1/2

[Event "58th Akiba Rubinstein D 2022"]
[Site "Polanica-Zdroj"]
[Date "2022.08.18"]
[Round "6.9"]
[White "Mareau, Timothe"]
[Black "Szczepanski, Krzysztof"]
[Result "1-0"]
[ECO "B21"]
[WhiteElo "1590"]
[BlackElo "1790"]
[Annotator "NA RC"]
[PlyCount "33"]
[EventDate "2022.08.13"]
[EventCountry "POL"]
[SourceTitle "playchess.com"]
[Source "ChessBase"]
[SourceQuality "1"]
[TimeControl "40/5400+30:1800+30"]

1. e4 {[%emt 0:00:05]} c5 {[%emt 0:01:47]} 2. d4 {[%emt 0:00:09]} cxd4 {[%emt 0:00:26]} 3. c3 {[%emt 0:00:07]} dxc3 {[%emt 0:00:32]} 4. Nxc3 {[%emt 0:00:14]} e6 {[%emt 0:00:12]} 5. Bc4 {[%emt 0:00:38]} Nc6 {[%emt 0:04:33]} 6. Nf3 {[%emt 0:01:44]} Qc7 {[%emt 0:00:10]} 7. O-O {[%emt 0:02:40]} Nge7 {[%emt 0:00:06]} 8. Nb5 {[%emt 0:01:48]} Qb8 {[%emt 0:04:25]} 9. Nd6+ {[%emt 0:00:08]} Kd8 {[%emt 0:00:03]} 10. Nxf7+ {[%emt 0:00:49]} Ke8 {[%emt 0:00:02]} 11. Nxh8 {[%emt 0:00:29]} g6 {[%emt 0:01:09]} 12. Ng5 {[%emt 0:03:47]} Ne5 {[%emt 0:01:35]} 13. Bf4 {[%emt 0:00:35]} Bg7 {[%emt 0:00:31]} 14. Nhf7 {[%emt 0:00:18]} d6 {[%emt 0:05:21]} 15. Nxd6+ {[%emt 0:03:55]} Kf8 {[%emt 0:00:11]} 16. Bxe6 {[%emt 0:00:33]} Bxe6 {[%emt 0:00:18]} 17. Nxe6+ {[%emt 0:00:07]} 1-0

[Event "58th Akiba Rubinstein D 2022"]
[Site "Polanica-Zdroj"]
[Date "2022.08.18"]
[Round "6.10"]
[White "Sleczka, Krzysztof"]
[Black "Kryzia, Wiktor"]
[Result "0-1"]
[ECO "B35"]
[WhiteElo "1443"]
[BlackElo "1764"]
[Annotator "NA RC"]
[PlyCount "92"]
[EventDate "2022.08.13"]
[EventCountry "POL"]
[SourceTitle "playchess.com"]
[Source "ChessBase"]
[SourceQuality "1"]
[TimeControl "40/5400+30:1800+30"]

1. e4 {[%emt 0:00:04]} c5 {[%emt 0:00:06]} 2. Nf3 {[%emt 0:00:06]} Nc6 {[%emt 0:00:04]} 3. d4 {[%emt 0:00:02]} cxd4 {[%emt 0:00:06]} 4. Nxd4 {[%emt 0:00:05]} g6 {[%emt 0:00:08]} 5. Nc3 {[%emt 0:00:12]} Bg7 {[%emt 0:00:06]} 6. Be3 {[%emt 0:00:04]} Nf6 {[%emt 0:00:08]} 7. Bc4 {[%emt 0:00:04]} O-O {[%emt 0:00:09]} 8. Bb3 {[%emt 0:00:02]} d6 {[%emt 0:00:21]} 9. f3 {[%emt 0:00:22]} Bd7 {[%emt 0:00:13]} 10. Qd2 {[%emt 0:00:28]} Na5 {[%emt 0:01:07]} 11. O-O-O {[%emt 0:00:35]} Nxb3+ {[%emt 0:00:38]} 12. cxb3 {[%emt 0:02:47]} Qa5 {[%emt 0:01:10]} 13. Kb1 {[%emt 0:02:51]} Rfc8 {[%emt 0:03:13]} 14. g4 {[%emt 0:02:25]} h5 {[%emt 0:28:04]} 15. gxh5 {[%emt 0:06:08]} Nxh5 {[%emt 0:04:22]} 16. Bh6 {[%emt 0:04:50]} Qe5 {[%emt 0:15:25]} 17. Bxg7 {[%emt 0:04:46]} Kxg7 {[%emt 0:05:39]} 18. Rdg1 {[%emt 0:05:44]} f6 {[%emt 0:09:50]} 19. h4 {[%emt 0:04:40]} b5 {[%emt 0:05:01]} 20. Nce2 {[%emt 0:03:35]} a5 {[%emt 0:03:47]} 21. Rg2 {[%emt 0:02:50]} Kh7 {[%emt 0:01:05]} 22. Rhg1 {[%emt 0:02:52]} Rg8 {[%emt 0:03:27]} 23. Ng3 {[%emt 0:05:19]} Nf4 {[%emt 0:02:00]} 24. Rh2 {[%emt 0:00:45]} Nh3 {[%emt 0:00:48]} 25. Rgg2 {[%emt 0:01:07]} Nf4 {[%emt 0:03:18]} 26. Rf2 {[%emt 0:13:27]} d5 {[%emt 0:04:40]} 27. exd5 {[%emt 0:02:29]} Nxd5 {[%emt 0:00:41]} 28. h5 {[%emt 0:05:27]} g5 {[%emt 0:01:08]} 29. Qd3+ {[%emt 0:02:22]} Kh8 {[%emt 0:00:10]} 30. Nge2 {[%emt 0:01:42]} Nb4 {[%emt 0:01:21]} 31. Qd2 {[%emt 0:03:13]} Bf5+ {[%emt 0:00:54]} 32. Kc1 {[%emt 0:01:53]} Nd3+ {[%emt 0:01:42]} 33. Kd1 {[%emt 0:00:08]} Nxf2+ {[%emt 0:00:24]} 34. Rxf2 {[%emt 0:00:02]} Rgd8 {[%emt 0:01:30]} 35. Ke1 {[%emt 0:02:07]} Rac8 {[%emt 0:00:55]} 36. Kf1 {[%emt 0:01:43]} Rc2 {[%emt 0:00:29]} 37. Qd1 {[%emt 0:00:23]} Bh3+ {[%emt 0:02:41]} 38. Kg1 {[%emt 0:00:25]} Rxe2 {[%emt 0:01:53]} 39. Qxe2 {[%emt 0:00:37]} Qg3+ {[%emt 0:00:40]} 40. Kh1 {[%emt 0:00:01]} Rxd4 {[%emt 0:00:13]} 41. Rh2 {[%emt 0:31:04]} Rh4 {[%emt 0:30:49]} 42. a4 {[%emt 0:01:20]} Bf1 {[%emt 0:00:28]} 43. Qd2 {[%emt 0:01:37]} Qxf3+ {[%emt 0:00:18]} 44. Kg1 {[%emt 0:00:02]} Rg4+ {[%emt 0:00:10]} 45. Rg2 {[%emt 0:00:10]} Rxg2+ {[%emt 0:00:03]} 46. Qxg2 {[%emt 0:00:01]} Qxg2# {[%emt 0:00:36]} 0-1

[Event "58th Akiba Rubinstein D 2022"]
[Site "Polanica-Zdroj"]
[Date "2022.08.18"]
[Round "6.12"]
[White "Misiek, Stanislaw"]
[Black "Straszewski, Tomasz"]
[Result "0-1"]
[ECO "E80"]
[WhiteElo "1427"]
[BlackElo "1716"]
[Annotator "NA RC"]
[PlyCount "92"]
[EventDate "2022.08.13"]
[EventCountry "POL"]
[SourceTitle "playchess.com"]
[Source "ChessBase"]
[SourceQuality "1"]
[TimeControl "40/5400+30:1800+30"]

1. d4 {[%emt 0:00:04]} Nf6 {[%emt 0:00:13]} 2. c4 {[%emt 0:00:11]} g6 {[%emt 0:00:07]} 3. f3 {[%emt 0:00:09]} Bg7 {[%emt 0:00:04]} 4. e4 {[%emt 0:00:09]} d6 {[%emt 0:00:03]} 5. Nc3 {[%emt 0:00:16]} c6 {[%emt 0:00:03]} 6. Be3 {[%emt 0:01:48]} a6 {[%emt 0:00:05]} 7. Nge2 {[%emt 0:10:14]} b5 {[%emt 0:00:27]} 8. Nc1 {[%emt 0:02:11]} Nbd7 {[%emt 0:02:27]} 9. Qd2 {[%emt 0:06:01]} Rb8 {[%emt 0:07:42]} 10. Be2 {[%emt 0:05:35]} O-O {[%emt 0:05:10]} 11. O-O {[%emt 0:05:06]} e5 {[%emt 0:01:03]} 12. dxe5 {[%emt 0:08:32]} Nxe5 {[%emt 0:00:47]} 13. Rd1 {[%emt 0:00:52]} Ne8 {[%emt 0:01:42]} 14. c5 {[%emt 0:17:11]} b4 {[%emt 0:01:37]} 15. Nb1 {[%emt 0:00:14]} f5 {[%emt 0:03:03]} 16. f4 {[%emt 0:02:18]} Ng4 {[%emt 0:04:13]} 17. Bxg4 {[%emt 0:02:03]} fxg4 {[%emt 0:01:34]} 18. cxd6 {[%emt 0:00:27]} Nf6 {[%emt 0:02:58]} 19. e5 {[%emt 0:04:45]} Nd5 {[%emt 0:02:22]} 20. Nd3 {[%emt 0:01:47]} Bf5 {[%emt 0:00:09]} 21. g3 {[%emt 0:02:41]} g5 {[%emt 0:01:38]} 22. Rc1 {[%emt 0:03:51]} Kh8 {[%emt 0:07:46]} 23. Nf2 {[%emt 0:05:17]} Qd7 {[%emt 0:05:48]} 24. a3 {[%emt 0:01:32]} Nxe3 {[%emt 0:03:17]} 25. Qxe3 {[%emt 0:00:13]} gxf4 {[%emt 0:00:04]} 26. gxf4 {[%emt 0:00:39]} Bh6 {[%emt 0:00:17]} 27. axb4 {[%emt 0:04:32]} Bxb1 {[%emt 0:01:11]} 28. Rcxb1 {[%emt 0:02:05]} Bxf4 {[%emt 0:00:06]} 29. Qd4 {[%emt 0:00:42]} Qg7 {[%emt 0:02:26]} 30. Nd3 {[%emt 0:00:33]} Bg5 {[%emt 0:00:53]} 31. Rxa6 {[%emt 0:00:53]} Rf3 {[%emt 0:01:52]} 32. Re1 {[%emt 0:01:14]} g3 {[%emt 0:01:19]} 33. h4 {[%emt 0:01:28]} Bxh4 {[%emt 0:03:12]} 34. Qxh4 {[%emt 0:01:21]} Rxd3 {[%emt 0:00:21]} 35. Rxc6 {[%emt 0:02:59]} Rf8 {[%emt 0:01:17]} 36. Rc7 {[%emt 0:00:52]} Qg6 {[%emt 0:01:06]} 37. Qe7 {[%emt 0:00:32]} Rdf3 {[%emt 0:02:11]} 38. Qh4 {[%emt 0:03:43]} g2 {[%emt 0:00:28]} 39. Qxh7+ {[%emt 0:01:36]} Qxh7 {[%emt 0:00:02]} 40. Rxh7+ {[%emt 0:00:02]} Kxh7 {[%emt 0:00:14]} 41. Kxg2 {[%emt 0:30:07]} R3f5 {[%emt 0:31:18]} 42. Re3 {[%emt 0:01:09]} Rg8+ {[%emt 0:00:28]} 43. Kh2 {[%emt 0:00:09]} Rh5+ {[%emt 0:01:46]} 44. Rh3 {[%emt 0:00:05]} Kg6 {[%emt 0:00:13]} 45. Rxh5 {[%emt 0:00:33]} Kxh5 {[%emt 0:00:01]} 46. e6 {[%emt 0:00:35]} Kg6 {[%emt 0:00:11]} 0-1

[Event "58th Akiba Rubinstein D 2022"]
[Site "Polanica-Zdroj"]
[Date "2022.08.18"]
[Round "6.13"]
[White "Sola, Wojciech"]
[Black "Marek, Grzegorz"]
[Result "1/2-1/2"]
[ECO "A50"]
[WhiteElo "1780"]
[BlackElo "1478"]
[Annotator "NA RC"]
[PlyCount "59"]
[EventDate "2022.08.13"]
[EventCountry "POL"]
[SourceTitle "playchess.com"]
[Source "ChessBase"]
[SourceQuality "1"]
[TimeControl "40/5400+30:1800+30"]

1. c4 {[%emt 0:00:06]} b6 {[%emt 0:00:15]} 2. d4 {[%emt 0:00:11]} Nf6 {[%emt 0:00:20]} 3. Nc3 {[%emt 0:00:07]} Bb7 {[%emt 0:00:16]} 4. Nf3 {[%emt 0:00:42]} e6 {[%emt 0:00:57]} 5. Bg5 {[%emt 0:00:15]} Be7 {[%emt 0:06:17]} 6. e3 {[%emt 0:00:20]} d6 {[%emt 0:00:58]} 7. Bd3 {[%emt 0:02:52]} h6 {[%emt 0:01:05]} 8. Bh4 {[%emt 0:00:12]} g5 {[%emt 0:00:59]} 9. Bg3 {[%emt 0:00:07]} g4 {[%emt 0:00:12]} 10. Nh4 {[%emt 0:07:17]} Rg8 {[%emt 0:00:13]} 11. h3 {[%emt 0:01:26]} Nh5 {[%emt 0:00:23]} 12. hxg4 {[%emt 0:00:40]} Nxg3 {[%emt 0:00:07]} 13. fxg3 {[%emt 0:00:37]} Nd7 {[%emt 0:07:35]} 14. Be4 {[%emt 0:05:18]} Bxe4 {[%emt 0:06:11]} 15. Nxe4 {[%emt 0:00:14]} Bg5 {[%emt 0:04:53]} 16. Qf3 {[%emt 0:07:27]} Qc8 {[%emt 0:26:55]} 17. O-O {[%emt 0:16:32]} Rg7 {[%emt 0:02:14]} 18. Kh2 {[%emt 0:00:11]} Rb8 {[%emt 0:01:43]} 19. Rf2 {[%emt 0:04:05]} Qb7 {[%emt 0:01:46]} 20. Re1 {[%emt 0:11:23]} Ke7 {[%emt 0:05:42]} 21. b3 {[%emt 0:01:06]} Qa8 {[%emt 0:01:35]} 22. Nc3 {[%emt 0:03:58]} Nf6 {[%emt 0:02:57]} 23. Rff1 {[%emt 0:22:46]} Bxh4 {[%emt 0:00:40]} 24. gxh4 {[%emt 0:00:25]} Nxg4+ {[%emt 0:00:15]} 25. Kh3 {[%emt 0:00:46]} Qxf3+ {[%emt 0:04:32]} 26. gxf3 {[%emt 0:00:08]} Nf6 {[%emt 0:00:14]} 27. Rg1 {[%emt 0:01:04]} Rbg8 {[%emt 0:01:19]} 28. Rxg7 {[%emt 0:00:09]} Rxg7 {[%emt 0:00:05]} 29. Kh2 {[%emt 0:01:55]} a6 {[%emt 0:00:55]} 30. Ne4 1/2-1/2

[Event "58th Akiba Rubinstein D 2022"]
[Site "Polanica-Zdroj"]
[Date "2022.08.18"]
[Round "6.14"]
[White "Ugorek, Kacper"]
[Black "Wilgosz, Jan"]
[Result "0-1"]
[ECO "E92"]
[WhiteElo "1747"]
[BlackElo "1597"]
[Annotator "NA RC"]
[PlyCount "142"]
[EventDate "2022.08.13"]
[EventCountry "POL"]
[SourceTitle "playchess.com"]
[Source "ChessBase"]
[SourceQuality "1"]
[TimeControl "40/5400+30:1800+30"]

1. d4 {[%emt 0:00:02]} Nf6 {[%emt 0:02:05]} 2. c4 {[%emt 0:00:06]} g6 {[%emt 0:00:24]} 3. Nc3 {[%emt 0:00:19]} Bg7 {[%emt 0:01:09]} 4. e4 {[%emt 0:00:07]} d6 {[%emt 0:00:14]} 5. Nf3 {[%emt 0:00:08]} O-O {[%emt 0:00:11]} 6. Be2 {[%emt 0:00:05]} e5 {[%emt 0:01:00]} 7. Be3 {[%emt 0:00:49]} Nc6 {[%emt 0:05:16]} 8. d5 {[%emt 0:00:51]} Ne7 {[%emt 0:03:04]} 9. Nd2 {[%emt 0:01:00]} Ne8 {[%emt 0:03:12]} 10. b4 {[%emt 0:01:31]} f5 {[%emt 0:01:09]} 11. f3 {[%emt 0:00:17]} Nf6 {[%emt 0:06:07]} 12. c5 {[%emt 0:03:43]} f4 {[%emt 0:02:46]} 13. Bf2 {[%emt 0:00:05]} g5 {[%emt 0:05:43]} 14. Nc4 {[%emt 0:00:52]} a6 {[%emt 0:05:35]} 15. cxd6 {[%emt 0:02:15]} cxd6 {[%emt 0:00:12]} 16. Nb6 {[%emt 0:00:48]} Rb8 {[%emt 0:03:03]} 17. Nxc8 {[%emt 0:00:31]} Rxc8 {[%emt 0:04:10]} 18. Rc1 {[%emt 0:02:03]} Ng6 {[%emt 0:01:42]} 19. O-O {[%emt 0:08:09]} h5 {[%emt 0:05:54]} 20. Na4 {[%emt 0:05:51]} g4 {[%emt 0:06:50]} 21. Qd2 {[%emt 0:13:11]} Qe7 {[%emt 0:07:22]} 22. Rxc8 {[%emt 0:04:22]} Rxc8 {[%emt 0:00:13]} 23. Rc1 {[%emt 0:00:05]} Qd8 {[%emt 0:07:08]} 24. Rxc8 {[%emt 0:04:46]} Qxc8 {[%emt 0:00:08]} 25. Qc3 {[%emt 0:00:31]} Qd8 {[%emt 0:02:02]} 26. b5 {[%emt 0:08:50]} axb5 {[%emt 0:01:55]} 27. Bxb5 {[%emt 0:00:08]} Nh7 {[%emt 0:02:26]} 28. Bb6 {[%emt 0:02:07]} Qg5 {[%emt 0:06:35]} 29. Kh1 {[%emt 0:10:28]} Qh4 {[%emt 0:04:56]} 30. Bd7 {[%emt 0:05:01]} Bf6 {[%emt 0:04:33]} 31. fxg4 {[%emt 0:04:59]} hxg4 {[%emt 0:01:18]} 32. g3 {[%emt 0:07:58]} Qg5 {[%emt 0:03:05]} 33. Qc8+ {[%emt 0:02:32]} Kg7 {[%emt 0:02:01]} 34. Bxg4 {[%emt 0:02:30]} fxg3 {[%emt 0:00:57]} 35. hxg3 {[%emt 0:01:23]} Ne7 {[%emt 0:00:38]} 36. Qd7 {[%emt 0:01:49]} Nf8 {[%emt 0:00:44]} 37. Qxd6 {[%emt 0:01:23]} Qxg4 {[%emt 0:00:22]} 38. Qb4 {[%emt 0:02:06]} Qh3+ {[%emt 0:00:20]} 39. Kg1 {[%emt 0:00:01]} Qxg3+ {[%emt 0:00:13]} 40. Kf1 {[%emt 0:00:36]} Neg6 {[%emt 0:01:29]} 41. Bc5 {[%emt 0:32:07]} Qf3+ {[%emt 0:30:58]} 42. Ke1 {[%emt 0:01:19]} Bh4+ {[%emt 0:00:40]} 43. Kd2 {[%emt 0:00:04]} Bg5+ {[%emt 0:00:36]} 44. Kc2 {[%emt 0:00:13]} Nd7 {[%emt 0:00:51]} 45. Qxb7 {[%emt 0:01:52]} Qxe4+ {[%emt 0:00:26]} 46. Kb3 {[%emt 0:00:09]} Qd3+ {[%emt 0:01:09]} 47. Nc3 {[%emt 0:00:09]} Qh3 {[%emt 0:00:28]} 48. a4 {[%emt 0:01:04]} Kh6 {[%emt 0:00:27]} 49. Bb4 {[%emt 0:00:30]} Bd2 {[%emt 0:00:23]} 50. Qb5 {[%emt 0:00:20]} Nf4 {[%emt 0:00:36]} 51. a5 {[%emt 0:01:41]} Nd3 {[%emt 0:00:20]} 52. Qc6+ {[%emt 0:01:09]} Kh5 {[%emt 0:00:40]} 53. a6 {[%emt 0:00:54]} N3c5+ {[%emt 0:00:31]} 54. Kc2 {[%emt 0:00:32]} Qd3+ {[%emt 0:00:21]} 55. Kb2 {[%emt 0:00:01]} Bxc3+ {[%emt 0:00:31]} 56. Bxc3 {[%emt 0:00:01]} Qe2+ {[%emt 0:00:46]} 57. Ka3 {[%emt 0:00:25]} Qc4 {[%emt 0:00:32]} 58. Kb2 {[%emt 0:00:54]} Qb3+ {[%emt 0:00:19]} 59. Kc1 {[%emt 0:00:14]} Qxc3+ {[%emt 0:00:12]} 60. Kd1 {[%emt 0:00:11]} Qd3+ {[%emt 0:00:28]} 61. Ke1 {[%emt 0:00:30]} Qxa6 {[%emt 0:00:26]} 62. Qc7 {[%emt 0:00:34]} Qa1+ {[%emt 0:00:21]} 63. Ke2 {[%emt 0:00:01]} Qb2+ {[%emt 0:00:17]} 64. Kf1 {[%emt 0:00:20]} Qc1+ {[%emt 0:00:24]} 65. Kg2 {[%emt 0:00:30]} Qd2+ {[%emt 0:00:17]} 66. Kh3 {[%emt 0:00:40]} Qxd5 {[%emt 0:00:00]} 67. Kh2 {[%emt 0:00:45]} Ne4 {[%emt 0:00:00]} 68. Qc8 {[%emt 0:01:50]} Qd2+ {[%emt 0:00:06]} 69. Kh1 {[%emt 0:00:07]} Qe1+ {[%emt 0:00:26]} 70. Kg2 {[%emt 0:00:19]} Qf2+ {[%emt 0:00:24]} 71. Kh1 {[%emt 0:00:07]} Ng3# {[%emt 0:00:20]} 0-1